[Event "Hungary Olimpic Hopes 2022"]
[Site "Tapolca"]
[Date "2022.06.24"]
[Round "3.14"]
[White "Kiss, Inez"]
[Black "Balazs, Szabina Zoe"]
[Result "1/2-1/2"]
[ECO "C05"]
[WhiteElo "1469"]
[BlackElo "1426"]
[Annotator "NA RC"]
[PlyCount "72"]
[EventDate "2022.06.23"]
[EventType "swiss"]
[EventCountry "HUN"]
[SourceTitle "playchess.com"]
[Source "ChessBase"]
[SourceQuality "1"]
[TimeControl "5400+30"]

1. e4 {[%emt 0:00:01]} e6 {[%emt 0:00:08]} 2. d4 {[%emt 0:00:04]} d5 {[%emt 0:00:11]} 3. Nd2 {[%emt 0:00:04]} Nf6 {[%emt 0:00:20]} 4. e5 {[%emt 0:00:04]} Nfd7 {[%emt 0:00:29]} 5. Bd3 {[%emt 0:00:05]} c5 {[%emt 0:00:19]} 6. c3 {[%emt 0:00:04]} Nc6 {[%emt 0:00:45]} 7. Ne2 {[%emt 0:00:07]} a5 {[%emt 0:01:23]} 8. Nf3 {[%emt 0:00:27]} a4 {[%emt 0:00:37]} 9. a3 {[%emt 0:01:44]} cxd4 {[%emt 0:01:19]} 10. cxd4 {[%emt 0:00:12]} Nb6 {[%emt 0:00:09]} 11. O-O {[%emt 0:01:22]} Bd7 {[%emt 0:00:52]} 12. Re1 {[%emt 0:04:13]} Be7 {[%emt 0:00:57]} 13. Bf4 {[%emt 0:05:58]} Na5 {[%emt 0:04:48]} 14. Nd2 {[%emt 0:06:33]} Rc8 {[%emt 0:02:43]} 15. Rc1 {[%emt 0:08:21]} O-O {[%emt 0:01:25]} 16. Rc3 {[%emt 0:03:28]} Rc6 {[%emt 0:07:25]} 17. Qb1 {[%emt 0:20:49]} g6 {[%emt 0:02:02]} 18. Bh6 {[%emt 0:01:04]} Re8 {[%emt 0:00:09]} 19. Rec1 {[%emt 0:05:10]} Bg5 {[%emt 0:01:43]} 20. Bxg5 {[%emt 0:02:03]} Qxg5 {[%emt 0:00:05]} 21. Nf3 {[%emt 0:02:39]} Qe7 {[%emt 0:00:29]} 22. Nd2 {[%emt 0:03:30]} Rec8 {[%emt 0:01:44]} 23. Rxc6 {[%emt 0:04:17]} bxc6 {[%emt 0:02:17]} 24. Qc2 {[%emt 0:05:13]} Nb7 {[%emt 0:01:19]} 25. Ba6 {[%emt 0:01:00]} Rc7 {[%emt 0:00:13]} 26. Bxb7 {[%emt 0:00:20]} Rxb7 {[%emt 0:00:07]} 27. Nf4 {[%emt 0:04:01]} Qh4 {[%emt 0:07:48]} 28. g3 {[%emt 0:04:23]} Qg4 {[%emt 0:01:49]} 29. h3 {[%emt 0:02:42]} Qg5 {[%emt 0:00:09]} 30. Nd3 {[%emt 0:02:01]} Be8 {[%emt 0:00:23]} 31. Nc5 {[%emt 0:00:50]} Ra7 {[%emt 0:00:15]} 32. Nf3 {[%emt 0:02:49]} Qe7 {[%emt 0:01:09]} 33. Ne1 {[%emt 0:02:39]} Qd8 {[%emt 0:01:40]} 34. Ng2 {[%emt 0:01:17]} h5 {[%emt 0:01:38]} 35. Ne1 {[%emt 0:01:19]} Qa8 {[%emt 0:02:05]} 36. Nf3 {[%emt 0:01:59]} Ra5 {[%emt 0:01:33]} 1/2-1/2

[Event "Hungary Olimpic Hopes 2022"]
[Site "Tapolca"]
[Date "2022.06.24"]
[Round "3.15"]
[White "Torok, Rita"]
[Black "Balogh, Gerda"]
[Result "0-1"]
[ECO "C49"]
[WhiteElo "1359"]
[BlackElo "1531"]
[Annotator "NA RC"]
[PlyCount "44"]
[EventDate "2022.06.23"]
[EventType "swiss"]
[EventCountry "HUN"]
[SourceTitle "playchess.com"]
[Source "ChessBase"]
[SourceQuality "1"]
[TimeControl "5400+30"]

1. e4 {[%emt 0:00:06]} e5 {[%emt 0:00:05]} 2. Nf3 {[%emt 0:00:11]} Nc6 {[%emt 0:00:09]} 3. Nc3 {[%emt 0:00:09]} Nf6 {[%emt 0:00:12]} 4. Bb5 {[%emt 0:00:25]} Bb4 {[%emt 0:00:59]} 5. O-O {[%emt 0:03:25]} O-O {[%emt 0:05:26]} 6. Re1 {[%emt 0:02:09]} d6 {[%emt 0:00:52]} 7. h3 {[%emt 0:01:36]} Bd7 {[%emt 0:01:48]} 8. a3 {[%emt 0:03:42]} Bxc3 {[%emt 0:03:00]} 9. dxc3 {[%emt 0:00:52]} h6 {[%emt 0:00:28]} 10. Qd3 {[%emt 0:08:26]} Ne7 11. Bxd7 {[%emt 0:06:06]} Qxd7 {[%emt 0:04:06]} 12. Rb1 {[%emt 0:11:28]} Ng6 {[%emt 0:02:40]} 13. c4 {[%emt 0:09:33]} Nh5 {[%emt 0:01:19]} 14. Qb3 {[%emt 0:04:12]} b6 {[%emt 0:01:57]} 15. Bd2 {[%emt 0:03:16]} Kh8 {[%emt 0:06:29]} 16. Rbd1 {[%emt 0:02:16]} f5 {[%emt 0:03:11]} 17. exf5 {[%emt 0:01:37]} Qxf5 18. Re3 {[%emt 0:04:58]} Ngf4 {[%emt 0:05:01]} 19. Kh1 {[%emt 0:14:12]} Nxg2 {[%emt 0:04:29]} 20. Kxg2 {[%emt 0:02:12]} Nf4+ {[%emt 0:00:10]} 21. Kg1 {[%emt 0:08:29]} Qxh3 {[%emt 0:00:12]} 22. Nh4 {[%emt 0:00:55]} Qxh4 0-1

[Event "Hungary Olimpic Hopes 2022"]
[Site "Tapolca"]
[Date "2022.06.24"]
[Round "3.16"]
[White "Hangyal, Dora"]
[Black "Toth, Kinga"]
[Result "1-0"]
[ECO "B72"]
[WhiteElo "1163"]
[BlackElo "1179"]
[Annotator "NA RC"]
[PlyCount "65"]
[EventDate "2022.06.23"]
[EventType "swiss"]
[EventCountry "HUN"]
[SourceTitle "playchess.com"]
[Source "ChessBase"]
[SourceQuality "1"]
[TimeControl "5400+30"]

1. e4 {[%emt 0:00:03]} c5 {[%emt 0:00:08]} 2. Nf3 {[%emt 0:00:05]} d6 {[%emt 0:00:07]} 3. d4 {[%emt 0:00:05]} cxd4 {[%emt 0:00:07]} 4. Nxd4 {[%emt 0:00:05]} Nf6 {[%emt 0:00:11]} 5. Nc3 {[%emt 0:00:12]} g6 {[%emt 0:00:26]} 6. Be3 {[%emt 0:00:25]} Bg7 {[%emt 0:00:20]} 7. Bc4 {[%emt 0:00:12]} O-O {[%emt 0:00:23]} 8. Qd2 {[%emt 0:00:14]} Bd7 {[%emt 0:00:23]} 9. O-O-O {[%emt 0:00:24]} Nc6 {[%emt 0:00:13]} 10. h4 {[%emt 0:00:22]} Rc8 {[%emt 0:00:36]} 11. Bb3 {[%emt 0:00:27]} a6 {[%emt 0:01:30]} 12. f3 {[%emt 0:00:29]} b5 {[%emt 0:00:21]} 13. g4 {[%emt 0:01:28]} Ne5 {[%emt 0:01:37]} 14. h5 {[%emt 0:01:22]} b4 {[%emt 0:02:18]} 15. Nce2 {[%emt 0:00:23]} a5 {[%emt 0:01:04]} 16. hxg6 {[%emt 0:00:36]} Nxg6 {[%emt 0:00:26]} 17. Bh6 {[%emt 0:01:14]} Re8 {[%emt 0:06:54]} 18. Bxg7 {[%emt 0:00:21]} Kxg7 {[%emt 0:00:08]} 19. Qh6+ {[%emt 0:00:10]} Kg8 20. g5 {[%emt 0:00:15]} e6 {[%emt 0:01:36]} 21. gxf6 {[%emt 0:01:30]} Qxf6 {[%emt 0:00:28]} 22. Qxh7+ {[%emt 0:08:00]} Kf8 23. c3 {[%emt 0:00:15]} a4 {[%emt 0:07:32]} 24. Bc2 bxc3 {[%emt 0:06:49]} 25. Nxc3 {[%emt 0:00:46]} a3 {[%emt 0:02:38]} 26. Bb3 {[%emt 0:06:48]} Qf4+ {[%emt 0:03:20]} 27. Kb1 {[%emt 0:00:32]} Qe3 28. Qh6+ {[%emt 0:00:10]} Qxh6 {[%emt 0:01:04]} 29. Rxh6 {[%emt 0:00:17]} e5 {[%emt 0:00:53]} 30. Nf5 {[%emt 0:00:16]} Bxf5 31. exf5 Kg7 {[%emt 0:04:49]} 32. Rdh1 {[%emt 0:00:58]} Nf4 33. f6+ {[%emt 0:00:16]} 1-0

[Event "Hungary Olimpic Hopes 2022"]
[Site "Tapolca"]
[Date "2022.06.24"]
[Round "3.17"]
[White "Szollosi, Balazs"]
[Black "Hegedus, Bernat"]
[Result "1-0"]
[ECO "B94"]
[WhiteElo "1294"]
[BlackElo "1399"]
[Annotator "NA RC"]
[PlyCount "83"]
[EventDate "2022.06.23"]
[EventType "swiss"]
[EventCountry "HUN"]
[SourceTitle "playchess.com"]
[Source "ChessBase"]
[SourceQuality "1"]
[TimeControl "5400+30"]

1. e4 {[%emt 0:30:04]} c5 {[%emt 0:30:11]} 2. Nf3 {[%emt 0:00:17]} d6 {[%emt 0:00:10]} 3. d4 {[%emt 0:00:16]} cxd4 {[%emt 0:00:14]} 4. Nxd4 {[%emt 0:00:22]} Nf6 {[%emt 0:00:16]} 5. Nc3 {[%emt 0:01:01]} a6 {[%emt 0:00:27]} 6. Bg5 {[%emt 0:01:19]} e5 {[%emt 0:07:09]} 7. Nf3 {[%emt 0:02:33]} Be6 {[%emt 0:00:55]} 8. Bxf6 {[%emt 0:04:23]} Qxf6 {[%emt 0:00:19]} 9. Qd2 {[%emt 0:04:07]} Nc6 {[%emt 0:18:19]} 10. Ng5 Be7 {[%emt 0:00:20]} 11. Nxe6 {[%emt 0:03:27]} Qxe6 12. Nd5 Rc8 {[%emt 0:01:45]} 13. Bc4 {[%emt 0:01:11]} Qg6 14. O-O Qxe4 {[%emt 0:04:44]} 15. Nxe7 {[%emt 0:10:36]} Nxe7 16. Bb3 Rd8 {[%emt 0:01:37]} 17. Rfe1 {[%emt 0:01:27]} Qg6 {[%emt 0:00:11]} 18. Qb4 {[%emt 0:00:56]} b5 {[%emt 0:01:09]} 19. Rad1 {[%emt 0:01:31]} O-O {[%emt 0:01:15]} 20. Qa3 {[%emt 0:01:01]} Nf5 {[%emt 0:00:18]} 21. Qxa6 {[%emt 0:00:48]} Ra8 {[%emt 0:01:51]} 22. Qxb5 {[%emt 0:05:52]} Rfe8 {[%emt 0:03:11]} 23. Qd5 {[%emt 0:02:06]} Ra7 {[%emt 0:00:55]} 24. c3 {[%emt 0:01:20]} Nh4 {[%emt 0:00:32]} 25. Qc6 {[%emt 0:01:55]} Rae7 {[%emt 0:02:47]} 26. Rxd6 {[%emt 0:08:14]} Qg5 {[%emt 0:00:27]} 27. Qe4 Kh8 {[%emt 0:00:31]} 28. g3 {[%emt 0:03:53]} f5 29. Qxh4 Qxh4 {[%emt 0:00:50]} 30. gxh4 {[%emt 0:02:05]} e4 {[%emt 0:00:00]} 31. Red1 {[%emt 0:00:44]} f4 {[%emt 0:00:00]} 32. Rd8 {[%emt 0:00:48]} e3 33. fxe3 fxe3 {[%emt 0:00:37]} 34. Rxe8+ {[%emt 0:00:40]} Rxe8 {[%emt 0:00:13]} 35. Re1 {[%emt 0:00:16]} g6 36. Kg2 {[%emt 0:00:19]} Kg7 {[%emt 0:00:24]} 37. Kf3 {[%emt 0:00:12]} Kh6 38. Rxe3 Rf8+ {[%emt 0:00:20]} 39. Kg3 {[%emt 0:00:55]} Kh5 40. a4 {[%emt 0:00:23]} h6 {[%emt 0:00:12]} 41. Bd1+ {[%emt 0:00:16]} Rf3+ {[%emt 0:00:11]} 42. Bxf3# 1-0

[Event "Hungary Olimpic Hopes 2022"]
[Site "Tapolca"]
[Date "2022.06.24"]
[Round "3.18"]
[White "Papai, Mate"]
[Black "Hangay, Oliver"]
[Result "0-1"]
[ECO "D35"]
[WhiteElo "1406"]
[BlackElo "1627"]
[Annotator "NA RC"]
[PlyCount "68"]
[EventDate "2022.06.23"]
[EventType "swiss"]
[EventCountry "HUN"]
[SourceTitle "playchess.com"]
[Source "ChessBase"]
[SourceQuality "1"]
[TimeControl "5400+30"]

1. d4 {[%emt 0:30:02]} d5 {[%emt 0:30:07]} 2. c4 {[%emt 0:00:05]} e6 {[%emt 0:00:04]} 3. Nc3 {[%emt 0:00:04]} Nf6 {[%emt 0:00:31]} 4. cxd5 {[%emt 0:00:06]} exd5 {[%emt 0:00:02]} 5. Bg5 {[%emt 0:00:08]} Be7 {[%emt 0:00:17]} 6. e3 {[%emt 0:00:12]} c6 {[%emt 0:00:21]} 7. Qc2 {[%emt 0:00:11]} O-O {[%emt 0:00:16]} 8. Bd3 {[%emt 0:00:11]} h6 {[%emt 0:01:39]} 9. Bf4 {[%emt 0:01:35]} Be6 {[%emt 0:02:02]} 10. Nf3 {[%emt 0:02:07]} Nbd7 {[%emt 0:00:24]} 11. h3 {[%emt 0:01:02]} Rc8 {[%emt 0:03:22]} 12. a3 {[%emt 0:02:41]} Nb6 {[%emt 0:03:45]} 13. b3 {[%emt 0:01:48]} Bd6 {[%emt 0:04:10]} 14. Bxd6 {[%emt 0:01:56]} Qxd6 15. O-O {[%emt 0:04:33]} Rc7 {[%emt 0:02:12]} 16. Rac1 {[%emt 0:01:35]} Rfc8 {[%emt 0:01:04]} 17. Ne5 {[%emt 0:01:13]} a6 {[%emt 0:02:08]} 18. Qb2 c5 {[%emt 0:02:52]} 19. f4 {[%emt 0:06:27]} c4 {[%emt 0:06:00]} 20. bxc4 Nxc4 {[%emt 0:05:28]} 21. Bxc4 {[%emt 0:02:52]} dxc4 {[%emt 0:05:37]} 22. Na4 Ne4 {[%emt 0:03:38]} 23. f5 {[%emt 0:13:50]} Bd5 24. Nb6 {[%emt 0:04:13]} c3 {[%emt 0:01:15]} 25. Qb1 {[%emt 0:00:22]} Rd8 {[%emt 0:06:58]} 26. Nxd5 {[%emt 0:03:03]} Qxd5 {[%emt 0:00:15]} 27. Nf3 {[%emt 0:00:27]} Ng3 {[%emt 0:01:55]} 28. Rf2 {[%emt 0:01:07]} Qxf5 {[%emt 0:00:28]} 29. Qa2 {[%emt 0:03:31]} Qd5 {[%emt 0:01:06]} 30. Qxd5 {[%emt 0:00:47]} Rxd5 {[%emt 0:00:01]} 31. Rfc2 Ne4 {[%emt 0:01:17]} 32. Kf1 {[%emt 0:02:55]} Ra5 {[%emt 0:00:45]} 33. Ra2 {[%emt 0:00:24]} b5 {[%emt 0:00:43]} 34. Rb1 {[%emt 0:02:52]} b4 {[%emt 0:03:38]} 0-1

[Event "Hungary Olimpic Hopes 2022"]
[Site "Tapolca"]
[Date "2022.06.24"]
[Round "3.19"]
[White "Hangay, Lilla"]
[Black "Illes-Nagy, Nora"]
[Result "0-1"]
[ECO "B47"]
[WhiteElo "1239"]
[BlackElo "1297"]
[Annotator "NA RC"]
[PlyCount "86"]
[EventDate "2022.06.23"]
[EventType "swiss"]
[EventCountry "HUN"]
[SourceTitle "playchess.com"]
[Source "ChessBase"]
[SourceQuality "1"]
[TimeControl "5400+30"]

1. e4 {[%emt 0:30:03]} c5 {[%emt 0:30:16]} 2. Nf3 {[%emt 0:00:05]} e6 {[%emt 0:00:15]} 3. d4 {[%emt 0:00:13]} cxd4 {[%emt 0:01:03]} 4. Nxd4 {[%emt 0:00:10]} Nc6 {[%emt 0:00:59]} 5. Nc3 {[%emt 0:00:36]} Qc7 {[%emt 0:00:47]} 6. g3 {[%emt 0:00:24]} a6 {[%emt 0:00:54]} 7. Bg2 {[%emt 0:00:34]} Nf6 {[%emt 0:00:20]} 8. O-O {[%emt 0:01:22]} Be7 {[%emt 0:01:03]} 9. Re1 {[%emt 0:03:07]} O-O {[%emt 0:01:06]} 10. Nxc6 {[%emt 0:01:25]} dxc6 {[%emt 0:00:41]} 11. Bg5 {[%emt 0:03:20]} Rd8 {[%emt 0:02:10]} 12. Qe2 Re8 {[%emt 0:04:46]} 13. Rad1 {[%emt 0:07:10]} Bd7 {[%emt 0:02:13]} 14. Qd2 {[%emt 0:11:48]} Rad8 15. h3 {[%emt 0:01:34]} e5 {[%emt 0:09:22]} 16. Re3 Bg4 17. Nd5 {[%emt 0:10:42]} Nxd5 {[%emt 0:04:31]} 18. exd5 Bxg5 {[%emt 0:00:47]} 19. f4 {[%emt 0:05:26]} Bxd1 {[%emt 0:00:31]} 20. fxg5 {[%emt 0:01:33]} Bh5 21. g4 {[%emt 0:01:55]} Bg6 {[%emt 0:02:32]} 22. h4 {[%emt 0:00:31]} f6 {[%emt 0:01:14]} 23. h5 Bxh5 {[%emt 0:00:39]} 24. gxh5 {[%emt 0:02:34]} fxg5 {[%emt 0:01:10]} 25. Rd3 {[%emt 0:05:05]} e4 26. d6 {[%emt 0:00:54]} Qb6+ {[%emt 0:01:27]} 27. Re3 {[%emt 0:00:46]} Qc5 {[%emt 0:03:45]} 28. d7 {[%emt 0:00:37]} Re7 {[%emt 0:01:20]} 29. b4 Qb6 30. Qc3 {[%emt 0:02:53]} Rexd7 {[%emt 0:01:37]} 31. Qc4+ {[%emt 0:00:58]} Kh8 {[%emt 0:02:46]} 32. Qxe4 {[%emt 0:02:26]} Qd4 {[%emt 0:03:17]} 33. Qe6 {[%emt 0:01:28]} Rf8 {[%emt 0:00:44]} 34. Kh1 Qd1+ 35. Re1 {[%emt 0:00:41]} Qxh5+ {[%emt 0:00:49]} 36. Kg1 {[%emt 0:00:32]} Qf7 {[%emt 0:00:37]} 37. Qg4 {[%emt 0:01:43]} Qf2+ {[%emt 0:01:22]} 38. Kh2 Qf4+ {[%emt 0:01:05]} 39. Qxf4 {[%emt 0:01:06]} gxf4 {[%emt 0:00:09]} 40. Bh3 {[%emt 0:00:22]} Rd2+ {[%emt 0:00:14]} 41. Kh1 {[%emt 0:00:21]} f3 42. Rc1 {[%emt 0:00:42]} f2 {[%emt 0:00:35]} 43. Bf1 {[%emt 0:00:07]} Re8 0-1

[Event "Hungary Olimpic Hopes 2022"]
[Site "Tapolca"]
[Date "2022.06.24"]
[Round "3.20"]
[White "Ferenczy, Nora"]
[Black "Csiszar, Vivien"]
[Result "1/2-1/2"]
[ECO "D92"]
[WhiteElo "1059"]
[BlackElo "1082"]
[Annotator "NA RC"]
[PlyCount "54"]
[EventDate "2022.06.23"]
[EventType "swiss"]
[EventCountry "HUN"]
[SourceTitle "playchess.com"]
[Source "ChessBase"]
[SourceQuality "1"]
[TimeControl "5400+30"]

1. d4 {[%emt 0:30:02]} Nf6 {[%emt 0:30:02]} 2. c4 {[%emt 0:00:09]} g6 {[%emt 0:00:13]} 3. Nc3 {[%emt 0:00:27]} d5 {[%emt 0:00:11]} 4. Nf3 {[%emt 0:01:10]} Bg7 {[%emt 0:04:01]} 5. Bf4 {[%emt 0:02:58]} c5 {[%emt 0:10:37]} 6. Be5 {[%emt 0:02:21]} O-O 7. Bxf6 {[%emt 0:04:36]} Bxf6 {[%emt 0:03:33]} 8. Nxd5 e6 {[%emt 0:09:26]} 9. Nxf6+ {[%emt 0:01:56]} Qxf6 10. e3 {[%emt 0:00:37]} Rd8 {[%emt 0:01:57]} 11. Be2 {[%emt 0:03:23]} Nc6 {[%emt 0:01:10]} 12. d5 {[%emt 0:04:31]} exd5 {[%emt 0:02:42]} 13. cxd5 {[%emt 0:00:54]} Qxb2 {[%emt 0:00:51]} 14. e4 {[%emt 0:04:31]} Qc3+ {[%emt 0:07:59]} 15. Nd2 {[%emt 0:01:04]} Nd4 {[%emt 0:07:14]} 16. O-O {[%emt 0:01:23]} Bd7 {[%emt 0:05:47]} 17. Rb1 {[%emt 0:03:41]} b6 {[%emt 0:01:44]} 18. Nf3 {[%emt 0:01:38]} Nxf3+ {[%emt 0:01:25]} 19. Bxf3 {[%emt 0:00:49]} Qf6 {[%emt 0:01:13]} 20. Re1 {[%emt 0:02:16]} Qe5 {[%emt 0:01:03]} 21. Qc2 {[%emt 0:01:40]} Re8 {[%emt 0:01:12]} 22. Rbd1 {[%emt 0:03:29]} Rad8 {[%emt 0:00:20]} 23. d6 {[%emt 0:01:36]} Be6 {[%emt 0:00:25]} 24. Qa4 {[%emt 0:01:38]} a5 {[%emt 0:01:19]} 25. Rd2 {[%emt 0:01:27]} Rd7 {[%emt 0:01:27]} 26. Red1 {[%emt 0:04:12]} Red8 {[%emt 0:00:17]} 27. Qc6 {[%emt 0:03:54]} Rb8 {[%emt 0:05:19]} 1/2-1/2

[Event "Hungary Olimpic Hopes 2022"]
[Site "Tapolca"]
[Date "2022.06.24"]
[Round "4.2"]
[White "Csernyik, Mark"]
[Black "Kolimar, Kristof Pal"]
[Result "1-0"]
[ECO "B43"]
[WhiteElo "1988"]
[BlackElo "2203"]
[Annotator "TA"]
[PlyCount "65"]
[EventDate "2022.06.23"]
[EventType "swiss"]
[EventCountry "HUN"]
[SourceTitle "playchess.com"]
[Source "ChessBase"]
[SourceQuality "1"]
[TimeControl "5400+30"]

{[%evp 17,65,23,30,14,14,0,1,6,17,0,34,0,0,0,0,0,0,-44,-18,-47,-48,-45,-28,-81,-27,-27,0,0,20,18,106,97,79,72,184,158,414,411,495,482,462,450,682,497,491,488,1222,1147,29979,10245]} 1. e4 {[%emt 0:00:34]} c5 {[%emt 0:00:08]} 2. Nf3 {[%emt 0:00:11][%cal Bg1f3,Bf3d4,Bd4b3][%mdl 32]} e6 {[%emt 0:00:13]} 3. d4 {[%emt 0:00:11]} cxd4 {[%emt 0:00:08]} 4. Nxd4 {[%emt 0:00:05]} a6 {[%emt 0:00:01]} 5. Nc3 {[%emt 0:00:08]} Qc7 {[%emt 0:00:12]} 6. Bd3 {[%emt 0:00:37]} Nf6 {[%emt 0:00:34][%cal Bg8f6,Bf6d7,Bd7e5][%mdl 32]} 7. O-O {[%emt 0:00:22]} Bc5 {[%emt 0:01:03]} 8. Nb3 {[%emt 0:00:53]} Be7 {[%emt 0:00:07]} 9. f4 {[%emt 0:00:27]} d6 {[%emt 0:00:04]} 10. e5 {[%emt 0:01:08] B43: Sicilian: Kan Variation: 5 Nc3.} dxe5 {[%emt 0:00:05]} 11. fxe5 {[%emt 0:00:08]} Nfd7 {[%emt 0:00:05]} 12. Qg4 {[%emt 0:00:28] The position is equal.} g6 {[%emt 0:00:04]} 13. Bf4 {[%emt 0:03:01] is the legacy move (13.Bh6).} Nc6 {[%emt 0:14:36]} (13... Nxe5 $5 {[%cal Rc7b6]} 14. Qg3 f6 $11) 14. Rae1 {[%emt 0:00:13]} Ndxe5 {[%emt 0:03:42]} 15. Qg3 {[%emt 0:06:45][%cal Re1e5]} f6 {[%emt 0:13:57]} 16. Ne4 {[%emt 0:06:28] [#]} O-O $146 {[%cal Be8g8,Bg8g7,Bg7h8][%mdl 32]} ({Predecessor:} 16... f5 17. Nd4 Qb6 18. Bxe5 O-O 19. Kh1 Nxe5 20. Qxe5 fxe4 21. Bc4 Bd6 22. Nxe6 {1-0 (22) Van Haastert,E (2430)-Lemmers,O (2382) Netherlands 2011}) 17. h4 {[%emt 0:02:29]} Qb6+ {[%emt 0:13:22]} (17... f5 $5 {[%cal Rf5e4]} 18. Ng5 Bd6 $15) 18. Kh1 {[%emt 0:00:23]} Nxd3 {[%emt 0:01:57]} 19. cxd3 {[%emt 0:04:13]} Kg7 {[%emt 0:24:03] Against Bh6+. aiming for ...e5.} 20. h5 {[%emt 0:06:03]} (20. Bc7 $11 {remains equal.} Qb5 21. d4) 20... Qb5 {[%emt 0:02:02]} (20... e5 $17 21. Be3 Qd8) 21. h6+ $1 $11 {[%emt 0:00:59]} ({Wrong is} 21. Bh6+ $2 Kxh6 22. Rf4 g5 $19) 21... Kh8 {[#] White must now prevent ...e5.} 22. Bd6 Qh5+ {[%emt 0:03:20]} 23. Kg1 {[%emt 0:01:03] Bxe7 is the strong threat.} Qxh6 {[%emt 0:00:23]} (23... Bxd6 $1 $11 24. Qxd6 Qxh6) 24. Bxe7 $16 {[%emt 0:00:20] White is much more active. The black rooks are badly placed.} Nxe7 {[%emt 0:00:01]} 25. Rxf6 {[%emt 0:01:00] [#] Strongly threatening Qd6.} Rxf6 {[%emt 0:13:08]} (25... b6 $16) 26. Nxf6 $18 {[%cal Be4f6,Bf6e8,Be8c7,Bc7e6][%mdl 32] And now Qd6 would win. Pair of Knights!} Nc6 $2 {A mistake that costs the game.} (26... Qg7 $16 27. Ne8 Nf5) 27. d4 {[%emt 0:05:59][%cal Bd3d4,Bd4d5][%mdl 32]} Qg7 {[%emt 0:05:23]} 28. Ne8 {[%emt 0:01:21]} Qf7 {[%emt 0:00:53]} 29. Nc7 {[%emt 0:01:15]} Ra7 {[%emt 0:00:05]} (29... Rb8 $142 30. d5 e5 31. dxc6 Qxc7 32. Rxe5 Be6) 30. d5 {[%emt 0:00:42]} b6 {[%emt 0:01:47]} (30... e5 $2 31. dxc6 bxc6 32. Qxe5+ Kg8 33. Qe8+ Qxe8 34. Rxe8+) 31. Nxe6 {[%emt 0:00:51]} (31. dxc6 Qxc7 32. Qc3+ Qg7 $16) 31... Ne7 {[%emt 0:03:47]} (31... Bxe6 $142 32. Rxe6 Ne7) 32. Rf1 {[%emt 0:00:34]} Nf5 {[%emt 0:00:33]} 33. Qc3+ {[%emt 0:00:11] Weighted Error Value: White=0.17 (very precise) /Black=0.66} 1-0

[Event "Hungary Olimpic Hopes 2022"]
[Site "Tapolca"]
[Date "2022.06.24"]
[Round "4.3"]
[White "Szegedy, Matyas"]
[Black "Herczeg, Marcell"]
[Result "1/2-1/2"]
[ECO "C50"]
[WhiteElo "2046"]
[BlackElo "2045"]
[Annotator "NA RC"]
[PlyCount "54"]
[EventDate "2022.06.23"]
[EventType "swiss"]
[EventCountry "HUN"]
[SourceTitle "playchess.com"]
[Source "ChessBase"]
[SourceQuality "1"]
[TimeControl "5400+30"]

1. e4 {[%emt 0:00:17]} e5 {[%emt 0:00:55]} 2. Nf3 {[%emt 0:02:41]} Nc6 {[%emt 0:00:56]} 3. Bc4 {[%emt 0:00:17]} Bc5 {[%emt 0:01:02]} 4. O-O {[%emt 0:01:39]} Nf6 {[%emt 0:00:59]} 5. d3 {[%emt 0:01:00]} d6 {[%emt 0:00:49]} 6. c3 {[%emt 0:00:22]} a6 {[%emt 0:01:27]} 7. Bb3 {[%emt 0:05:05]} O-O {[%emt 0:00:31]} 8. h3 {[%emt 0:00:07]} h6 {[%emt 0:03:46]} 9. Re1 {[%emt 0:03:37]} Re8 {[%emt 0:02:42]} 10. Nbd2 {[%emt 0:09:44]} Be6 11. Bxe6 {[%emt 0:00:16]} Rxe6 {[%emt 0:00:48]} 12. b4 {[%emt 0:00:46]} Ba7 {[%emt 0:02:48]} 13. Qc2 {[%emt 0:03:33]} Ne7 {[%emt 0:07:59]} 14. Nf1 {[%emt 0:02:40]} d5 {[%emt 0:03:30]} 15. Be3 {[%emt 0:00:53]} Bxe3 $11 {[%emt 0:01:49]} 16. Nxe3 {[%emt 0:07:39]} c6 {[%emt 0:01:19]} 17. a4 {[%emt 0:02:37]} Ng6 {[%emt 0:04:34]} 18. g3 {[%emt 0:00:40]} Qd7 {[%emt 0:01:44]} 19. Kg2 {[%emt 0:00:45]} dxe4 {[%emt 0:02:31]} 20. dxe4 {[%emt 0:05:31]} a5 {[%emt 0:00:30]} 21. bxa5 {[%emt 0:00:30]} Rxa5 {[%emt 0:02:24]} 22. Rab1 {[%emt 0:00:08]} Re8 {[%emt 0:00:31]} 23. Rb4 {[%emt 0:00:24]} Rea8 {[%emt 0:02:00]} 24. Reb1 {[%emt 0:02:47]} R5a7 {[%emt 0:00:42]} 25. Nd2 c5 {[%emt 0:00:44]} 26. Rb5 {[%emt 0:01:18]} Rxa4 {[%emt 0:03:49]} 27. Rxb7 Ra2 1/2-1/2